[Event "Titled Tuesday Blitz June 13 Late 2023"]
[White "Pert, Richard G"]
[Black "Babazada, Khazar"]
[WhiteFideId "404748"]
[BlackFideId "13413554"]
[WhiteElo "2441"]
[BlackElo "2369"]
[Result "0-1"]
[Round "3"]
[TimeControl "180+2"]
[Date "2023.06.13"]
[WhiteClock "0:00:00"]
[BlackClock "0:01:16"]
[Board "63"]

1. d4 {[%clk 0:03:00]}  Nf6 {[%clk 0:03:00]} 2. Bg5 {[%clk 0:02:59]}  c5 {[%clk 0:02:59]} 3. Nc3 {[%clk 0:02:54]}  cxd4 {[%clk 0:02:59]} 4. Qxd4 {[%clk 0:02:54]}  Nc6 {[%clk 0:02:59]} 5. Qh4 {[%clk 0:02:54]}  d5 {[%clk 0:02:47]} 6. O-O-O {[%clk 0:02:52]}  Be6 {[%clk 0:02:47]} 7. e4 {[%clk 0:02:49]}  d4 {[%clk 0:02:47]} 8. e5 {[%clk 0:02:43]}  Qa5 {[%clk 0:02:45]} 9. Rxd4 {[%clk 0:02:23]}  Nxd4 {[%clk 0:02:25]} 10. Qxd4 {[%clk 0:02:22]}  Nd7 {[%clk 0:02:19]} 11. Nf3 {[%clk 0:02:13]}  a6 {[%clk 0:02:19]} 12. Be2 {[%clk 0:01:46]}  g6 {[%clk 0:02:17]} 13. Rd1 {[%clk 0:01:43]}  Bg7 {[%clk 0:02:17]} 14. Bc4 {[%clk 0:01:20]}  Qc7 {[%clk 0:02:11]} 15. Nd5 {[%clk 0:01:03]}  Bxd5 {[%clk 0:02:06]} 16. Qxd5 {[%clk 0:00:59]}  O-O {[%clk 0:02:04]} 17. Bxe7 {[%clk 0:00:55]}  Nb6 {[%clk 0:02:02]} 18. Qd6 {[%clk 0:00:49]}  Qxd6 {[%clk 0:01:58]} 19. exd6 {[%clk 0:00:48]}  Nxc4 {[%clk 0:01:58]} 20. Bxf8 {[%clk 0:00:46]}  Kxf8 {[%clk 0:01:53]} 21. Ng5 {[%clk 0:00:43]}  h6 {[%clk 0:01:51]} 22. Ne4 {[%clk 0:00:42]}  Bxb2+ {[%clk 0:01:49]} 23. Kb1 {[%clk 0:00:43]}  Be5 {[%clk 0:01:49]} 24. g3 {[%clk 0:00:41]}  Rd8 {[%clk 0:01:47]} 25. d7 {[%clk 0:00:38]}  Nd6 {[%clk 0:01:41]} 26. Nc5 {[%clk 0:00:20]}  b6 {[%clk 0:01:36]} 27. f4 {[%clk 0:00:19]}  bxc5 {[%clk 0:01:35]} 28. fxe5 {[%clk 0:00:19]}  Nc4 {[%clk 0:01:35]} 29. Rd5 {[%clk 0:00:18]}  Ke7 {[%clk 0:01:34]} 30. c3 {[%clk 0:00:18]}  Ke6 {[%clk 0:01:33]} 31. Rxc5 {[%clk 0:00:18]}  Nxe5 {[%clk 0:01:33]} 32. Ra5 {[%clk 0:00:18]}  Rxd7 {[%clk 0:01:32]} 33. Rxa6+ {[%clk 0:00:18]}  Kd5 {[%clk 0:01:33]} 34. Kc2 {[%clk 0:00:18]}  Nc4 {[%clk 0:01:31]} 35. Rf6 {[%clk 0:00:16]}  Re7 {[%clk 0:01:31]} 36. a4 {[%clk 0:00:15]}  Re2+ {[%clk 0:01:31]} 37. Kd1 {[%clk 0:00:15]}  Rxh2 {[%clk 0:01:29]} 38. Rxf7 {[%clk 0:00:15]}  Ke4 {[%clk 0:01:28]} 39. Rf6 {[%clk 0:00:14]}  Kd3 {[%clk 0:01:26]} 40. Ke1 {[%clk 0:00:14]}  Ne5 {[%clk 0:01:20]} 41. a5 {[%clk 0:00:13]}  Kxc3 {[%clk 0:01:19]} 42. a6 {[%clk 0:00:13]}  Ra2 {[%clk 0:01:19]} 43. Kf1 {[%clk 0:00:12]}  Kd4 {[%clk 0:01:19]} 44. Re6 {[%clk 0:00:09]}  Ke4 {[%clk 0:01:19]} 45. g4 {[%clk 0:00:07]}  Kf4 {[%clk 0:01:18]} 46. Ke1 {[%clk 0:00:06]}  g5 {[%clk 0:01:16]} 47. Rxh6 {[%clk 0:00:04]}  Kxg4 {[%clk 0:01:16]} 48. Kd1 {[%clk 0:00:02]}  Kf5 {[%clk 0:01:17]} 49. Kc1 {[%clk 0:00:03]}  g4 {[%clk 0:01:16]} 50. Kb1 {[%clk 0:00:03]}  Ra5 {[%clk 0:01:15]} 51. Kb2 {[%clk 0:00:04]}  g3 {[%clk 0:01:15]} 52. Kc3 {[%clk 0:00:02]}  g2 {[%clk 0:01:15]} 53. Rh5+ {[%clk 0:00:00]}  Kf4 {[%clk 0:01:16]} 0-1


[Site "https://www.chess.com"]

[Event "Titled Tuesday Blitz June 13 Late 2023"]
[White "Maksimovic, Bojan"]
[Black "Golubev, Mikhail"]
[WhiteFideId "14408120"]
[BlackFideId "14100983"]
[WhiteElo "2457"]
[BlackElo "2374"]
[Result "1-0"]
[Round "3"]
[TimeControl "180+2"]
[Date "2023.06.13"]
[WhiteClock "0:03:10"]
[BlackClock "0:00:00"]
[Board "64"]

1. e4 {[%clk 0:03:00]}  c5 {[%clk 0:02:59]} 2. Nf3 {[%clk 0:03:01]}  d6 {[%clk 0:02:59]} 3. d4 {[%clk 0:03:02]}  cxd4 {[%clk 0:02:59]} 4. Nxd4 {[%clk 0:03:03]}  Nf6 {[%clk 0:02:59]} 5. Nc3 {[%clk 0:03:04]}  g6 {[%clk 0:02:59]} 6. Be3 {[%clk 0:03:04]}  Bg7 {[%clk 0:02:59]} 7. f3 {[%clk 0:03:05]}  Nc6 {[%clk 0:02:59]} 8. Qd2 {[%clk 0:03:05]}  O-O {[%clk 0:02:59]} 9. g4 {[%clk 0:03:06]}  Nxd4 {[%clk 0:02:51]} 10. Bxd4 {[%clk 0:03:07]}  Be6 {[%clk 0:02:51]} 11. O-O-O {[%clk 0:03:07]}  Qa5 {[%clk 0:02:50]} 12. a3 {[%clk 0:03:07]}  Rfc8 {[%clk 0:02:47]} 13. Kb1 {[%clk 0:03:07]}  Rab8 {[%clk 0:02:46]} 14. h4 {[%clk 0:03:08]}  b5 {[%clk 0:02:39]} 15. Nd5 {[%clk 0:03:08]}  Qxd2 {[%clk 0:02:36]} 16. Rxd2 {[%clk 0:03:09]}  Bxd5 {[%clk 0:02:17]} 17. exd5 {[%clk 0:03:09]}  a5 {[%clk 0:02:17]} 18. h5 {[%clk 0:03:09]}  Nd7 {[%clk 0:01:34]} 19. g5 {[%clk 0:03:09]}  Bxd4 {[%clk 0:00:00]} 20. Rxd4 {[%clk 0:03:10]} 1-0


[Site "https://www.chess.com"]

[Event "Titled Tuesday Blitz June 13 Late 2023"]
[White "Rustemov, Alexander"]
[Black "Petesch, Gabriel"]
[WhiteFideId "4119002"]
[BlackFideId "2032465"]
[WhiteElo "2799"]
[BlackElo "2374"]
[Result "1-0"]
[Round "3"]
[TimeControl "180+2"]
[Date "2023.06.13"]
[WhiteClock "0:00:32"]
[BlackClock "0:00:00"]
[Board "66"]

1. d4 {[%clk 0:03:00]}  d5 {[%clk 0:02:54]} 2. c4 {[%clk 0:03:01]}  c6 {[%clk 0:02:45]} 3. Nc3 {[%clk 0:03:01]}  Nf6 {[%clk 0:02:44]} 4. e3 {[%clk 0:03:01]}  g6 {[%clk 0:02:43]} 5. Nf3 {[%clk 0:03:02]}  Bg7 {[%clk 0:02:36]} 6. Bd3 {[%clk 0:03:01]}  O-O {[%clk 0:02:36]} 7. O-O {[%clk 0:03:01]}  b6 {[%clk 0:02:32]} 8. Qe2 {[%clk 0:02:56]}  Bb7 {[%clk 0:02:25]} 9. Rd1 {[%clk 0:02:55]}  Nbd7 {[%clk 0:01:56]} 10. e4 {[%clk 0:02:35]}  dxe4 {[%clk 0:01:57]} 11. Bxe4 {[%clk 0:02:34]}  Nxe4 {[%clk 0:01:57]} 12. Nxe4 {[%clk 0:02:34]}  Nf6 {[%clk 0:01:53]} 13. Nc3 {[%clk 0:02:31]}  Qc7 {[%clk 0:01:51]} 14. Bg5 {[%clk 0:02:24]}  Rad8 {[%clk 0:01:50]} 15. Re1 {[%clk 0:02:20]}  h6 {[%clk 0:01:46]} 16. Bh4 {[%clk 0:02:19]}  e6 {[%clk 0:01:32]} 17. Rad1 {[%clk 0:02:08]}  a6 {[%clk 0:01:14]} 18. Bg3 {[%clk 0:01:59]}  Qe7 {[%clk 0:01:05]} 19. Na4 {[%clk 0:01:55]}  Nd7 {[%clk 0:00:55]} 20. Bc7 {[%clk 0:01:55]}  Rc8 {[%clk 0:00:53]} 21. Bxb6 {[%clk 0:01:55]}  Qb4 {[%clk 0:00:53]} 22. Nc5 {[%clk 0:01:34]}  Nxb6 {[%clk 0:00:53]} 23. Nxb7 {[%clk 0:01:33]}  Nxc4 {[%clk 0:00:33]} 24. Nc5 {[%clk 0:01:32]}  Qb5 {[%clk 0:00:23]} 25. b3 {[%clk 0:01:29]}  Nd6 {[%clk 0:00:20]} 26. Nxa6 {[%clk 0:01:26]}  Ra8 {[%clk 0:00:20]} 27. Qxb5 {[%clk 0:01:23]}  Nxb5 {[%clk 0:00:18]} 28. Nb4 {[%clk 0:01:23]}  c5 {[%clk 0:00:14]} 29. dxc5 {[%clk 0:01:20]}  Bc3 {[%clk 0:00:13]} 30. Re4 {[%clk 0:01:11]}  Rfd8 {[%clk 0:00:14]} 31. Rxd8+ {[%clk 0:01:10]}  Rxd8 {[%clk 0:00:14]} 32. g3 {[%clk 0:01:07]}  Rd1+ {[%clk 0:00:15]} 33. Kg2 {[%clk 0:01:07]}  Rc1 {[%clk 0:00:04]} 34. Nd3 {[%clk 0:00:59]}  Rc2 {[%clk 0:00:04]} 35. a4 {[%clk 0:00:59]}  Nc7 {[%clk 0:00:04]} 36. b4 {[%clk 0:00:57]}  Nd5 {[%clk 0:00:04]} 37. b5 {[%clk 0:00:56]}  Ba5 {[%clk 0:00:02]} 38. b6 {[%clk 0:00:50]}  Kf8 {[%clk 0:00:02]} 39. Nfe5 {[%clk 0:00:46]}  Ke8 {[%clk 0:00:01]} 40. Rc4 {[%clk 0:00:45]}  Rxc4 {[%clk 0:00:01]} 41. Nxc4 {[%clk 0:00:45]}  Bc3 {[%clk 0:00:01]} 42. c6 {[%clk 0:00:43]}  Kd8 {[%clk 0:00:01]} 43. a5 {[%clk 0:00:43]}  Kc8 {[%clk 0:00:02]} 44. a6 {[%clk 0:00:35]}  Kb8 {[%clk 0:00:02]} 45. a7+ {[%clk 0:00:32]}  Ka8 {[%clk 0:00:00]} 46. c7 {[%clk 0:00:32]} 1-0


[Site "https://www.chess.com"]

[Event "Titled Tuesday Blitz June 13 Late 2023"]
[White "Peycheva, Gergana"]
[Black "Klukin, Kirill"]
[WhiteFideId "2916711"]
[BlackFideId "24199273"]
[WhiteElo "2216"]
[BlackElo "2344"]
[Result "0-1"]
[Round "3"]
[TimeControl "180+2"]
[Date "2023.06.13"]
[WhiteClock "0:00:01"]
[BlackClock "0:00:50"]
[Board "70"]

1. d4 {[%clk 0:03:00]}  Nf6 {[%clk 0:02:58]} 2. c4 {[%clk 0:03:00]}  Nc6 {[%clk 0:02:59]} 3. Nf3 {[%clk 0:02:54]}  e6 {[%clk 0:02:58]} 4. a3 {[%clk 0:02:54]}  d6 {[%clk 0:02:58]} 5. Nc3 {[%clk 0:02:51]}  g6 {[%clk 0:02:58]} 6. e4 {[%clk 0:02:49]}  Bg7 {[%clk 0:02:56]} 7. Be2 {[%clk 0:02:49]}  O-O {[%clk 0:02:57]} 8. O-O {[%clk 0:02:49]}  Re8 {[%clk 0:02:57]} 9. Bg5 {[%clk 0:02:48]}  h6 {[%clk 0:02:57]} 10. Be3 {[%clk 0:02:48]}  e5 {[%clk 0:02:57]} 11. d5 {[%clk 0:02:37]}  Nd4 {[%clk 0:02:57]} 12. Nxd4 {[%clk 0:02:36]}  exd4 {[%clk 0:02:58]} 13. Bxd4 {[%clk 0:02:37]}  Nxe4 {[%clk 0:02:59]} 14. Bxg7 {[%clk 0:02:02]}  Kxg7 {[%clk 0:03:00]} 15. Nxe4 {[%clk 0:02:02]}  Rxe4 {[%clk 0:03:00]} 16. Bd3 {[%clk 0:02:02]}  Rd4 {[%clk 0:03:00]} 17. Qc2 {[%clk 0:02:01]}  Qf6 {[%clk 0:03:01]} 18. Rfe1 {[%clk 0:01:57]}  Bd7 {[%clk 0:03:00]} 19. Re3 {[%clk 0:01:56]}  Re8 {[%clk 0:02:53]} 20. Rae1 {[%clk 0:01:50]}  Rxe3 {[%clk 0:02:47]} 21. Rxe3 {[%clk 0:01:51]}  h5 {[%clk 0:02:43]} 22. h3 {[%clk 0:01:43]}  b6 {[%clk 0:02:37]} 23. Qe2 {[%clk 0:01:39]}  b5 {[%clk 0:01:56]} 24. cxb5 {[%clk 0:01:33]}  Rxd5 {[%clk 0:01:51]} 25. Re7 {[%clk 0:01:33]}  Re5 {[%clk 0:00:57]} 26. Rxe5 {[%clk 0:01:32]}  Qxe5 {[%clk 0:00:58]} 27. Qxe5+ {[%clk 0:01:08]}  dxe5 {[%clk 0:00:59]} 28. Kf1 {[%clk 0:01:02]}  h4 {[%clk 0:00:59]} 29. Ke2 {[%clk 0:01:02]}  f5 {[%clk 0:01:00]} 30. Ke3 {[%clk 0:00:57]}  Kf6 {[%clk 0:01:00]} 31. Bc4 {[%clk 0:00:48]}  g5 {[%clk 0:00:59]} 32. f3 {[%clk 0:00:43]}  Ke7 {[%clk 0:00:57]} 33. b4 {[%clk 0:00:34]}  Kd6 {[%clk 0:00:58]} 34. a4 {[%clk 0:00:33]}  Be6 {[%clk 0:00:55]} 35. Bd3 {[%clk 0:00:24]}  Kd5 {[%clk 0:00:54]} 36. Bb1 {[%clk 0:00:15]}  f4+ {[%clk 0:00:55]} 37. Kd2 {[%clk 0:00:11]}  Kd4 {[%clk 0:00:55]} 38. Bc2 {[%clk 0:00:09]}  Bc4 {[%clk 0:00:55]} 39. Bf5 {[%clk 0:00:03]}  Bf1 {[%clk 0:00:51]} 40. Be6 {[%clk 0:00:03]}  Bxg2 {[%clk 0:00:50]} 41. Bg4 {[%clk 0:00:04]}  Bf1 {[%clk 0:00:50]} 42. Bf5 {[%clk 0:00:03]}  Bc4 {[%clk 0:00:51]} 43. Bd7 {[%clk 0:00:02]}  Bb3 {[%clk 0:00:50]} 44. a5 {[%clk 0:00:02]}  Bd5 {[%clk 0:00:50]} 45. Bf5 {[%clk 0:00:01]}  Bxf3 {[%clk 0:00:50]} 0-1


[Site "https://www.chess.com"]

[Event "Titled Tuesday Blitz June 13 Late 2023"]
[White "Fedotov, Nikita"]
[Black "Bordi, Kevin"]
[WhiteFideId "24161446"]
[BlackFideId "621862"]
[WhiteElo "2211"]
[BlackElo "2729"]
[Result "0-1"]
[Round "3"]
[TimeControl "180+2"]
[Date "2023.06.13"]
[WhiteClock "0:00:31"]
[BlackClock "0:01:10"]
[Board "71"]

1. e4 {[%clk 0:02:51]}  d5 {[%clk 0:03:00]} 2. exd5 {[%clk 0:02:50]}  Qxd5 {[%clk 0:03:01]} 3. Nc3 {[%clk 0:02:50]}  Qa5 {[%clk 0:03:01]} 4. d4 {[%clk 0:02:51]}  Nf6 {[%clk 0:03:01]} 5. Bc4 {[%clk 0:02:51]}  Bg4 {[%clk 0:03:01]} 6. f3 {[%clk 0:02:50]}  Bf5 {[%clk 0:03:02]} 7. Ne2 {[%clk 0:02:48]}  e6 {[%clk 0:03:02]} 8. O-O {[%clk 0:02:47]}  c6 {[%clk 0:03:03]} 9. Bf4 {[%clk 0:02:44]}  Nbd7 {[%clk 0:03:02]} 10. a3 {[%clk 0:02:44]}  Be7 {[%clk 0:03:01]} 11. b4 {[%clk 0:02:42]}  Qd8 {[%clk 0:03:02]} 12. Ng3 {[%clk 0:02:37]}  Bg6 {[%clk 0:03:02]} 13. Nge4 {[%clk 0:02:36]}  O-O {[%clk 0:03:01]} 14. Qe2 {[%clk 0:02:30]}  Nb6 {[%clk 0:03:01]} 15. Rad1 {[%clk 0:02:24]}  Nxc4 {[%clk 0:03:01]} 16. Qxc4 {[%clk 0:02:25]}  Nd5 {[%clk 0:03:01]} 17. Bg3 {[%clk 0:02:21]}  a5 {[%clk 0:03:01]} 18. Nc5 {[%clk 0:02:07]}  Bxc5 {[%clk 0:02:56]} 19. dxc5 {[%clk 0:02:03]}  axb4 {[%clk 0:02:49]} 20. axb4 {[%clk 0:02:02]}  Qf6 {[%clk 0:02:47]} 21. Ne4 {[%clk 0:01:54]}  Qb2 {[%clk 0:02:35]} 22. Rb1 {[%clk 0:01:48]}  Qa2 {[%clk 0:02:34]} 23. Qxa2 {[%clk 0:01:38]}  Rxa2 {[%clk 0:02:35]} 24. Nd6 {[%clk 0:01:39]}  Rxc2 {[%clk 0:02:34]} 25. Nxb7 {[%clk 0:01:37]}  Ne3 {[%clk 0:02:35]} 26. Na5 {[%clk 0:01:28]}  Nxf1 {[%clk 0:01:45]} 27. Rxf1 {[%clk 0:01:19]}  Bd3 {[%clk 0:01:46]} 28. Rd1 {[%clk 0:01:18]}  Bb5 {[%clk 0:01:46]} 29. Bd6 {[%clk 0:01:13]}  Ra8 {[%clk 0:01:41]} 30. h4 {[%clk 0:01:11]}  h6 {[%clk 0:01:38]} 31. Rd4 {[%clk 0:01:10]}  f6 {[%clk 0:01:34]} 32. Bg3 {[%clk 0:01:03]}  e5 {[%clk 0:01:32]} 33. Rd7 {[%clk 0:01:01]}  Rb2 {[%clk 0:01:28]} 34. Be1 {[%clk 0:00:57]}  Rb1 {[%clk 0:01:28]} 35. Kf2 {[%clk 0:00:57]}  Re8 {[%clk 0:01:28]} 36. Nb7 {[%clk 0:00:55]}  e4 {[%clk 0:01:27]} 37. Nd6 {[%clk 0:00:53]}  e3+ {[%clk 0:01:27]} 38. Kg3 {[%clk 0:00:54]}  Rxe1 {[%clk 0:01:20]} 39. Nxe8 {[%clk 0:00:53]}  e2 {[%clk 0:01:19]} 40. Re7 {[%clk 0:00:39]}  Kf8 {[%clk 0:01:16]} 41. Re3 {[%clk 0:00:36]}  Rd1 {[%clk 0:01:12]} 42. Kf2 {[%clk 0:00:31]}  Rf1+ {[%clk 0:01:10]} 0-1


[Site "https://www.chess.com"]

[Event "Titled Tuesday Blitz June 13 Late 2023"]
[White "benny_aizenberg"]
[Black "Girsh, Daniel"]
[BlackFideId "30949190"]
[WhiteElo "2678"]
[BlackElo "2075"]
[Result "1-0"]
[Round "3"]
[TimeControl "180+2"]
[Date "2023.06.13"]
[WhiteClock "0:01:46"]
[BlackClock "0:01:50"]
[Board "75"]

1. g4 {[%clk 0:03:00]}  d5 {[%clk 0:02:59]} 2. g5 {[%clk 0:03:01]}  e5 {[%clk 0:02:58]} 3. h4 {[%clk 0:03:01]}  Nc6 {[%clk 0:02:58]} 4. Bg2 {[%clk 0:03:01]}  h6 {[%clk 0:02:56]} 5. d3 {[%clk 0:03:01]}  hxg5 {[%clk 0:02:55]} 6. hxg5 {[%clk 0:03:01]}  Rxh1 {[%clk 0:02:55]} 7. Bxh1 {[%clk 0:03:01]}  Be7 {[%clk 0:02:54]} 8. Nc3 {[%clk 0:03:02]}  Bxg5 {[%clk 0:02:49]} 9. Nxd5 {[%clk 0:03:00]}  Bxc1 {[%clk 0:02:47]} 10. Qxc1 {[%clk 0:02:57]}  Be6 {[%clk 0:02:47]} 11. c4 {[%clk 0:02:53]}  Nge7 {[%clk 0:02:47]} 12. Nxe7 {[%clk 0:02:50]}  Qxe7 {[%clk 0:02:47]} 13. Bxc6+ {[%clk 0:02:41]}  bxc6 {[%clk 0:02:48]} 14. Nf3 {[%clk 0:02:41]}  f6 {[%clk 0:02:41]} 15. Qc3 {[%clk 0:02:39]}  Rb8 {[%clk 0:02:38]} 16. O-O-O {[%clk 0:02:38]}  Kf7 {[%clk 0:02:37]} 17. Rg1 {[%clk 0:02:33]}  Bf5 {[%clk 0:02:23]} 18. Qa5 {[%clk 0:02:25]}  a6 {[%clk 0:02:13]} 19. Nd2 {[%clk 0:02:09]}  Rb6 {[%clk 0:02:09]} 20. Nb3 {[%clk 0:02:02]}  e4 {[%clk 0:02:08]} 21. Qxf5 {[%clk 0:02:01]}  exd3 {[%clk 0:02:07]} 22. exd3 {[%clk 0:01:57]}  a5 {[%clk 0:02:04]} 23. Qxa5 {[%clk 0:01:56]}  Qe2 {[%clk 0:02:02]} 24. Qd2 {[%clk 0:01:53]}  Qf3 {[%clk 0:02:01]} 25. Qe3 {[%clk 0:01:53]}  Qf5 {[%clk 0:02:01]} 26. Re1 {[%clk 0:01:52]}  Qd7 {[%clk 0:01:54]} 27. Qe4 {[%clk 0:01:48]}  Ra6 {[%clk 0:01:50]} 28. Nc5 {[%clk 0:01:46]} 1-0


[Site "https://www.chess.com"]

[Event "Titled Tuesday Blitz June 13 Late 2023"]
[White "Estrada Nieto, Julian"]
[Black "Bellahcene, Bilel"]
[WhiteFideId "5101018"]
[BlackFideId "696358"]
[WhiteElo "2161"]
[BlackElo "2552"]
[Result "0-1"]
[Round "3"]
[TimeControl "180+2"]
[Date "2023.06.13"]
[WhiteClock "0:00:00"]
[BlackClock "0:00:49"]
[Board "78"]

1. e4 {[%clk 0:03:00]}  c5 {[%clk 0:02:59]} 2. Nf3 {[%clk 0:03:00]}  d6 {[%clk 0:02:53]} 3. Bb5+ {[%clk 0:03:00]}  Nd7 {[%clk 0:02:43]} 4. d4 {[%clk 0:02:59]}  cxd4 {[%clk 0:02:42]} 5. Qxd4 {[%clk 0:03:00]}  a6 {[%clk 0:02:42]} 6. Bxd7+ {[%clk 0:03:00]}  Qxd7 {[%clk 0:02:42]} 7. Nc3 {[%clk 0:03:01]}  e5 {[%clk 0:02:42]} 8. Qd3 {[%clk 0:03:00]}  f5 {[%clk 0:02:43]} 9. Nd5 {[%clk 0:02:33]}  fxe4 {[%clk 0:02:29]} 10. Qxe4 {[%clk 0:02:33]}  Nf6 {[%clk 0:02:30]} 11. Nxf6+ {[%clk 0:02:20]}  gxf6 {[%clk 0:02:31]} 12. Qh4 {[%clk 0:02:05]}  Rg8 {[%clk 0:02:27]} 13. Bh6 {[%clk 0:01:38]}  Bxh6 {[%clk 0:02:06]} 14. Qxh6 {[%clk 0:01:37]}  Rg6 {[%clk 0:02:07]} 15. Qh5 {[%clk 0:01:32]}  Qg4 {[%clk 0:01:59]} 16. Qxh7 {[%clk 0:01:18]}  Qe4+ {[%clk 0:01:46]} 17. Kf1 {[%clk 0:01:15]}  Qc4+ {[%clk 0:01:35]} 18. Kg1 {[%clk 0:01:07]}  Bf5 {[%clk 0:01:28]} 19. Qh5 {[%clk 0:00:50]}  Bxc2 {[%clk 0:00:58]} 20. Nh4 {[%clk 0:00:39]}  Qg4 {[%clk 0:00:58]} 21. Qh8+ {[%clk 0:00:26]}  Rg8 {[%clk 0:00:58]} 22. Qxf6 {[%clk 0:00:22]}  Kd7 {[%clk 0:00:55]} 23. h3 {[%clk 0:00:18]}  Qc4 {[%clk 0:00:52]} 24. b3 {[%clk 0:00:10]}  Qd5 {[%clk 0:00:50]} 25. Kh2 {[%clk 0:00:08]}  Raf8 {[%clk 0:00:50]} 26. Qh6 {[%clk 0:00:07]}  Rxf2 {[%clk 0:00:49]} 27. Rac1 {[%clk 0:00:00]}  Rgxg2+ {[%clk 0:00:49]} 0-1


[Site "https://www.chess.com"]

[Event "Titled Tuesday Blitz June 13 Late 2023"]
[White "Kleiman, Jake"]
[Black "Santos Flores, Alberto"]
[WhiteFideId "2020041"]
[BlackFideId "3601234"]
[WhiteElo "2653"]
[BlackElo "2235"]
[Result "0-1"]
[Round "3"]
[TimeControl "180+2"]
[Date "2023.06.13"]
[WhiteClock "0:00:20"]
[BlackClock "0:00:12"]
[Board "81"]

1. Nf3 {[%clk 0:02:57]}  d5 {[%clk 0:02:59]} 2. g3 {[%clk 0:02:58]}  Nf6 {[%clk 0:02:58]} 3. Bg2 {[%clk 0:02:59]}  e6 {[%clk 0:02:55]} 4. O-O {[%clk 0:02:59]}  Be7 {[%clk 0:02:55]} 5. d3 {[%clk 0:03:00]}  c5 {[%clk 0:02:49]} 6. Nbd2 {[%clk 0:03:01]}  Nc6 {[%clk 0:02:49]} 7. e4 {[%clk 0:02:57]}  O-O {[%clk 0:02:49]} 8. e5 {[%clk 0:02:57]}  Nd7 {[%clk 0:02:48]} 9. Re1 {[%clk 0:02:58]}  b5 {[%clk 0:02:48]} 10. Nf1 {[%clk 0:02:58]}  a5 {[%clk 0:02:44]} 11. h4 {[%clk 0:02:58]}  b4 {[%clk 0:02:43]} 12. Bf4 {[%clk 0:02:58]}  a4 {[%clk 0:02:41]} 13. a3 {[%clk 0:02:57]}  bxa3 {[%clk 0:02:41]} 14. bxa3 {[%clk 0:02:58]}  Ba6 {[%clk 0:02:38]} 15. h5 {[%clk 0:02:58]}  Rc8 {[%clk 0:02:35]} 16. h6 {[%clk 0:02:56]}  g6 {[%clk 0:02:35]} 17. N1h2 {[%clk 0:02:56]}  Nd4 {[%clk 0:02:30]} 18. Ng4 {[%clk 0:02:50]}  Qa5 {[%clk 0:02:09]} 19. Nxd4 {[%clk 0:02:26]}  cxd4 {[%clk 0:02:09]} 20. Re2 {[%clk 0:02:23]}  Rc6 {[%clk 0:01:51]} 21. Nh2 {[%clk 0:01:57]}  Rfc8 {[%clk 0:01:44]} 22. Nf3 {[%clk 0:01:58]}  Qb6 {[%clk 0:01:37]} 23. Bg5 {[%clk 0:01:54]}  Bf8 {[%clk 0:01:36]} 24. Nh2 {[%clk 0:01:52]}  Qb2 {[%clk 0:01:31]} 25. c4 {[%clk 0:01:46]}  dxc3 {[%clk 0:01:01]} 26. Rxb2 {[%clk 0:00:20]}  cxb2 {[%clk 0:01:02]} 27. Rb1 {[%clk 0:00:21]}  Bxa3 {[%clk 0:01:02]} 28. Qxa4 {[%clk 0:00:21]}  Bxd3 {[%clk 0:00:37]} 29. Rxb2 {[%clk 0:00:18]}  Bxb2 {[%clk 0:00:36]} 30. Qb3 {[%clk 0:00:17]}  Rc1+ {[%clk 0:00:33]} 31. Nf1 {[%clk 0:00:16]}  Bxf1 {[%clk 0:00:31]} 32. Bxf1 {[%clk 0:00:17]}  Bxe5 {[%clk 0:00:31]} 33. Kg2 {[%clk 0:00:17]}  Nc5 {[%clk 0:00:25]} 34. Qb5 {[%clk 0:00:16]}  Rc2 {[%clk 0:00:22]} 35. Qa5 {[%clk 0:00:15]}  Ne4 {[%clk 0:00:20]} 36. Be3 {[%clk 0:00:16]}  Bf6 {[%clk 0:00:17]} 37. Bd3 {[%clk 0:00:16]}  R2c3 {[%clk 0:00:15]} 38. Bxe4 {[%clk 0:00:16]}  dxe4 {[%clk 0:00:16]} 39. Qa6 {[%clk 0:00:16]}  R3c4 {[%clk 0:00:14]} 40. Qb7 {[%clk 0:00:16]}  R4c6 {[%clk 0:00:12]} 41. Qd7 {[%clk 0:00:17]}  Be5 {[%clk 0:00:12]} 42. Bg5 {[%clk 0:00:17]}  Rc2 {[%clk 0:00:10]} 43. Kh3 {[%clk 0:00:16]}  Bh8 {[%clk 0:00:09]} 44. Be3 {[%clk 0:00:15]}  R2c4 {[%clk 0:00:08]} 45. Qb7 {[%clk 0:00:15]}  Bf6 {[%clk 0:00:08]} 46. g4 {[%clk 0:00:16]}  Bh8 {[%clk 0:00:06]} 47. g5 {[%clk 0:00:16]}  Be5 {[%clk 0:00:06]} 48. Kg2 {[%clk 0:00:16]}  Bh8 {[%clk 0:00:06]} 49. Qb5 {[%clk 0:00:17]}  R4c6 {[%clk 0:00:06]} 50. Qa4 {[%clk 0:00:17]}  Rc4 {[%clk 0:00:06]} 51. Qa5 {[%clk 0:00:17]}  Bc3 {[%clk 0:00:06]} 52. Qa6 {[%clk 0:00:16]}  Be5 {[%clk 0:00:06]} 53. Qb7 {[%clk 0:00:15]}  Bc3 {[%clk 0:00:06]} 54. Kf1 {[%clk 0:00:14]}  Be5 {[%clk 0:00:06]} 55. Qb5 {[%clk 0:00:14]}  Bc3 {[%clk 0:00:06]} 56. Ke2 {[%clk 0:00:14]}  Bh8 {[%clk 0:00:07]} 57. Bf4 {[%clk 0:00:15]}  Bc3 {[%clk 0:00:06]} 58. Kf1 {[%clk 0:00:15]}  Bh8 {[%clk 0:00:06]} 59. Kg2 {[%clk 0:00:15]}  Bc3 {[%clk 0:00:07]} 60. Be5 {[%clk 0:00:16]}  R4c5 {[%clk 0:00:07]} 61. Qb3 {[%clk 0:00:13]}  Bxe5 {[%clk 0:00:07]} 62. Qe3 {[%clk 0:00:13]}  Bh8 {[%clk 0:00:07]} 63. Kg3 {[%clk 0:00:13]}  Be5+ {[%clk 0:00:07]} 64. Kg4 {[%clk 0:00:13]}  Rc4 {[%clk 0:00:07]} 65. Qe2 {[%clk 0:00:13]}  Bh8 {[%clk 0:00:07]} 66. Kg3 {[%clk 0:00:13]}  Be5+ {[%clk 0:00:07]} 67. Kg4 {[%clk 0:00:13]}  e3+ {[%clk 0:00:07]} 68. Kh3 {[%clk 0:00:12]}  exf2 {[%clk 0:00:07]} 69. Qxf2 {[%clk 0:00:13]}  Rf4 {[%clk 0:00:06]} 70. Qe2 {[%clk 0:00:14]}  Rc3+ {[%clk 0:00:06]} 71. Kg2 {[%clk 0:00:14]}  Rf5 {[%clk 0:00:06]} 72. Qb5 {[%clk 0:00:13]}  Rxg5+ {[%clk 0:00:05]} 73. Kf1 {[%clk 0:00:14]}  Rf5+ {[%clk 0:00:05]} 74. Ke2 {[%clk 0:00:14]}  Rc8 {[%clk 0:00:05]} 75. Qd7 {[%clk 0:00:13]}  Rf8 {[%clk 0:00:05]} 76. Qe7 {[%clk 0:00:13]}  Bh8 {[%clk 0:00:06]} 77. Qh4 {[%clk 0:00:14]}  Rh5 {[%clk 0:00:06]} 78. Qf4 {[%clk 0:00:14]}  Rf5 {[%clk 0:00:06]} 79. Qh4 {[%clk 0:00:15]}  Rh5 {[%clk 0:00:06]} 80. Qf4 {[%clk 0:00:15]}  e5 {[%clk 0:00:07]} 81. Qe3 {[%clk 0:00:15]}  Rf5 {[%clk 0:00:07]} 82. Qd2 {[%clk 0:00:15]}  Re8 {[%clk 0:00:07]} 83. Qe3 {[%clk 0:00:15]}  e4 {[%clk 0:00:07]} 84. Qa3 {[%clk 0:00:15]}  e3 {[%clk 0:00:07]} 85. Qa4 {[%clk 0:00:16]}  Rf8 {[%clk 0:00:07]} 86. Qb4 {[%clk 0:00:16]}  Rh5 {[%clk 0:00:07]} 87. Kxe3 {[%clk 0:00:16]}  Rxh6 {[%clk 0:00:08]} 88. Qf4 {[%clk 0:00:17]}  Rh5 {[%clk 0:00:08]} 89. Qg4 {[%clk 0:00:18]}  Bg7 {[%clk 0:00:09]} 90. Qc4 {[%clk 0:00:18]}  Bh6+ {[%clk 0:00:09]} 91. Kf3 {[%clk 0:00:19]}  Rf5+ {[%clk 0:00:10]} 92. Kg4 {[%clk 0:00:19]}  Re8 {[%clk 0:00:11]} 93. Kg3 {[%clk 0:00:20]}  Rfe5 {[%clk 0:00:11]} 94. Kg2 {[%clk 0:00:20]}  Re4 {[%clk 0:00:11]} 95. Kf3 {[%clk 0:00:20]}  Rxc4 {[%clk 0:00:12]} 0-1


[Site "https://www.chess.com"]